bitfinex/quotes_SOLUSD_20251106
["timestamp","ask_amount","ask_price","bid_price","bid_amount"]
[1762403012372,20.592,162.45,162.43,3.2795507]
[1762403012671,20.592,162.45,162.44,3.2795507]
[1762403012869,20.592,162.45,162.44,3.9595507]
[1762403013175,7.1,162.46,162.44,3.9595507]
[1762403013962,7.1,162.46,162.44,3.2795507]
[1762403014168,7.1,162.46,162.44,3.9595507]
[1762403014366,13.25551351,162.46,162.44,0.68]
[1762403014544,13.91551351,162.46,162.42,3.2795507]
[1762403014874,13.91551351,162.46,162.43,0.68]
[1762403015391,13.25551351,162.46,162.43,0.68]
[1762403018066,7.1,162.46,162.43,3.9595507]
[1762403018671,7.1,162.46,162.44,0.71]
[1762403018873,13.25538119,162.46,162.44,0.71]
[1762403024275,13.25536663,162.46,162.44,0.71]
[1762403025578,7.1,162.46,162.44,0.71]
[1762403027166,7.1,162.46,162.44,6.86608597]
[1762403027488,20.592,162.48,162.45,3.2795507]
[1762403027665,20.592,162.48,162.46,3.2795507]
[1762403027978,20.592,162.48,162.46,3.9895507]
[1762403028273,26.74660364,162.48,162.47,0.71]
[1762403028479,26.74660364,162.48,162.45,3.2795507]
[1762403028678,7.82,162.47,162.43,0.71]
[1762403028887,11.0995507,162.47,162.43,0.71]
[1762403029375,7.82,162.47,162.43,0.71]
[1762403029584,13.97531842,162.47,162.43,0.71]
[1762403030081,7.1,162.47,162.44,3.2795507]
[1762403030486,7.1,162.47,162.45,0.71]
[1762403031474,18.66438928,162.5,162.46,3.2795507]
[1762403031475,6.15392083,162.5,162.46,3.2795507]
[1762403031786,13.25392083,162.5,162.47,3.2795507]
[1762403032081,13.95392083,162.5,162.46,3.9295507]
[1762403032683,13.95392083,162.5,162.47,0.65]
[1762403033082,6.8543227,162.49,162.45,10.0852305]
[1762403033261,6.8543227,162.49,162.45,0.65]
[1762403033587,6.8543227,162.49,162.46,0.65]
[1762403035499,7.1,162.48,162.46,0.65]
[1762403036806,13.25462261,162.48,162.45,3.2795507]
[1762403037102,7.1,162.48,162.46,0.65]
[1762403040114,7.1,162.48,162.45,3.9295507]
[1762403040699,0.7,162.47,162.44,3.2795507]
[1762403040875,111.8,162.46,162.42,3.9295507]
[1762403041078,20.592,162.43,162.4,3.2175719]
[1762403041297,3.2795507,162.41,162.36,0.2]
[1762403041496,7.1,162.4,162.38,3.21934165]
[1762403041716,27.692,162.42,162.39,3.2795507]
[1762403042023,7.1,162.43,162.41,3.2795507]
[1762403042394,7.1,162.43,162.41,3.9295507]
[1762403044706,6.15611918,162.44,162.4,3.2795507]
[1762403044903,6.85611918,162.44,162.4,0.65]
[1762403046823,104.7,162.43,162.4,0.65]
[1762403047814,104.7,162.43,162.4,3.9295507]
[1762403048515,104.7,162.43,162.41,0.65]
[1762403048721,104.7,162.43,162.41,3.9295507]
[1762403049119,104.7,162.43,162.42,0.65]
[1762403049325,105.4,162.5,162.42,0.65]
[1762403049521,111.8,162.49,162.44,3.2795507]
[1762403049705,133.092,162.49,162.42,0.65]
[1762403049912,133.092,162.49,162.43,3.2795507]
[1762403050428,13.25422487,162.49,162.46,3.2795507]
[1762403050617,13.25422487,162.49,162.45,3.2795507]
[1762403051025,13.95422487,162.49,162.45,3.9295507]
[1762403052963,0.7,162.48,162.45,0.65]
[1762403053535,13.25422487,162.49,162.45,3.9295507]
[1762403053536,7.1,162.49,162.45,3.9295507]
[1762403053732,7.8,162.49,162.45,3.9295507]
[1762403054039,7.8,162.49,162.46,0.65]
[1762403054234,0.7,162.48,162.42,6.8065907]
[1762403054533,0.7,162.48,162.43,3.2795507]
[1762403054915,0.7,162.48,162.43,3.9295507]
[1762403055532,6.15498245,162.47,162.43,3.9295507]
[1762403056041,0.7,162.46,162.43,3.9295507]
[1762403058047,6.15498245,162.47,162.44,3.2795507]
[1762403058240,0.7,162.46,162.44,3.2795507]
[1762403059456,6.15498245,162.47,162.44,3.2795507]
[1762403059749,6.85498245,162.47,162.43,3.9295507]
[1762403062234,0.7,162.47,162.44,0.68]
[1762403062547,0.7,162.46,162.42,3.2795507]
[1762403062939,7.8,162.46,162.42,3.2795507]
[1762403063139,7.8,162.46,162.41,3.2795507]
[1762403063349,0.7,162.45,162.41,3.2795507]
[1762403063555,0.7,162.45,162.4,6.83763546]
[1762403064362,104.7,162.44,162.4,8.93671415]
[1762403064854,104.7,162.44,162.41,2.77907869]
[1762403065244,104.7,162.44,162.42,0.68]
[1762403065450,104.7,162.44,162.41,2.09907869]
[1762403065650,104.7,162.44,162.41,2.77907869]
[1762403065946,104.7,162.44,162.41,0.68]
[1762403066134,104.7,162.44,162.42,2.77907869]
[1762403066330,104.7,162.44,162.42,0.68]
[1762403066542,105.4,162.44,162.4,8.93671415]
[1762403066737,105.4,162.44,162.4,6.83763546]
[1762403067136,105.4,162.44,162.4,8.93671415]
[1762403068170,104.7,162.44,162.4,8.93671415]
[1762403068341,0.7,162.43,162.4,8.93671415]
[1762403069539,104.7,162.44,162.41,2.77907869]
[1762403070045,104.7,162.44,162.42,0.68]
[1762403070453,7.1,162.46,162.42,2.77907869]
[1762403070965,7.1,162.46,162.43,0.68]
[1762403071163,6.15763546,162.48,162.44,2.09907869]
[1762403071364,125.292,162.5,162.46,6.15536131]
[1762403071567,133.092,162.5,162.46,6.83536131]
[1762403071750,133.092,162.5,162.46,0.68]
[1762403073865,139.24590468,162.5,162.46,0.68]
[1762403075358,2.09907869,162.47,162.41,3.89736138]
[1762403075566,2.09907869,162.46,162.41,9.37461121]
[1762403075841,2.79907869,162.46,162.41,10.05461121]
[1762403076041,0.71,162.45,162.41,10.05461121]
[1762403077070,6.86578497,162.45,162.41,10.05461121]
[1762403077372,0.71,162.45,162.41,10.05461121]
[1762403078597,8.96492645,162.45,162.41,3.21736138]
[1762403078949,0.71,162.44,162.41,3.21736138]
[1762403079370,0.71,162.46,162.41,12.15359484]
[1762403079570,9.19907869,162.47,162.41,11.47359484]
[1762403079571,0.71,162.45,162.41,11.47359484]
[1762403079775,0.71,162.45,162.42,0.68]
[1762403081973,8.96495506,162.45,162.41,3.21736138]
[1762403082378,0.71,162.44,162.41,3.21736138]
[1762403082580,6.86617274,162.44,162.41,3.21736138]
[1762403083777,11.47359484,162.45,162.42,0.68]
[1762403083778,9.37451615,162.45,162.42,0.68]
[1762403083971,0.71,162.46,162.42,0.68]
[1762403084680,0.71,162.46,162.42,6.83678847]
[1762403084876,105.41,162.46,162.42,8.93586716]
[1762403085176,105.41,162.46,162.42,8.25586716]
[1762403085362,105.41,162.46,162.42,6.83678847]
[1762403085567,0.71,162.45,162.42,6.83678847]
[1762403086075,110.85543084,162.46,162.42,6.83678847]
[1762403086277,111.56543084,162.46,162.42,6.83678847]
[1762403086881,0.71,162.45,162.41,9.37457705]
[1762403087070,0.71,162.45,162.41,10.05457705]
[1762403087471,0.71,162.45,162.42,0.68]
[1762403089379,0.71,162.45,162.42,6.83673992]
[1762403089681,104.7,162.46,162.44,2.09907869]
[1762403089880,120.80498916,162.51,162.45,11.88790638]
[1762403090065,105.41,162.51,162.46,2.09907869]
[1762403090269,105.41,162.51,162.46,2.77907869]
[1762403090489,105.41,162.51,162.47,0.68]
[1762403092173,110.8534711,162.51,162.47,0.68]
[1762403092380,0.66,162.5,162.46,8.9441238]
[1762403093696,0.66,162.5,162.47,0.69]
[1762403094090,0.66,162.5,162.46,8.2541238]
[1762403094392,0.66,162.5,162.46,8.9441238]
[1762403096386,0.66,162.5,162.47,0.69]
[1762403098190,6.81389373,162.5,162.46,6.15504511]
[1762403098494,2.09907869,162.49,162.45,13.25565307]
[1762403098802,2.75907869,162.49,162.45,13.25565307]
[1762403098973,0.66,162.48,162.45,13.25565307]
[1762403099293,9.85907869,162.48,162.43,0.69]
[1762403099506,20.592,162.45,162.41,3.21736138]
[1762403099807,2.09907869,162.42,162.41,3.21736138]
[1762403100164,0.66,162.42,162.41,3.21736138]
[1762403100366,6.81687723,162.42,162.38,0.69]
[1762403100561,0.66,162.42,162.38,0.69]
[1762403100783,0.66,162.42,162.4,3.2187677]
[1762403101200,6.81709669,162.42,162.4,3.2187677]
[1762403101703,0.66,162.41,162.4,3.2187677]
[1762403102980,6.81725632,162.41,162.4,3.2187677]
[1762403103210,8.91633501,162.41,162.4,3.2187677]
[1762403103782,8.91633501,162.41,162.36,0.2]
[1762403103986,2.75907869,162.4,162.37,3.2191358]
[1762403104302,16.01692999,162.4,162.37,3.2191358]
[1762403104494,0.66,162.39,162.37,3.2191358]
[1762403105295,29.79107869,162.38,162.36,0.2]
[1762403105616,2.09907869,162.37,162.36,0.2]
[1762403105795,2.75907869,162.37,162.34,3.18899416]
[1762403105992,9.85907869,162.36,162.34,3.18899416]
[1762403106615,7.1,162.36,162.35,0.69]
[1762403106780,3.21999416,162.37,162.35,0.69]
[1762403106986,3.21999416,162.37,162.34,3.87899416]
[1762403107181,7.1,162.38,162.35,0.69]
[1762403107715,7.76,162.38,162.35,0.69]
[1762403107897,7.76,162.38,162.34,3.18899416]
[1762403108410,7.1,162.38,162.35,0.69]
[1762403108816,33.8519779,162.39,162.35,8.94832534]
[1762403109116,27.692,162.39,162.35,8.94832534]
[1762403109415,13.25741348,162.41,162.36,2.78907869]
[1762403109714,31.4171943,162.41,162.36,0.69]
[1762403109884,31.4171943,162.41,162.37,0.69]
[1762403110808,29.31811561,162.41,162.37,0.69]
[1762403111291,7.76,162.41,162.37,0.69]
[1762403111893,13.25744049,162.41,162.37,0.69]
[1762403112107,7.1,162.41,162.37,8.94783575]
[1762403112498,7.1,162.41,162.38,0.69]
[1762403113208,7.1,162.41,162.38,6.84836597]
[1762403113522,7.1,162.41,162.39,0.69]
[1762403113810,7.1,162.41,162.38,2.09907869]
[1762403114110,7.76,162.41,162.37,2.09907869]
[1762403114311,7.76,162.41,162.37,2.78907869]
[1762403115088,7.76,162.41,162.37,6.8487638]
[1762403115292,2.75907869,162.4,162.35,2.09907869]
[1762403115516,9.19907869,162.39,162.34,3.87899416]
[1762403115695,9.85907869,162.39,162.34,5.97807285]
[1762403115900,7.76,162.39,162.35,0.69]
[1762403116401,7.76,162.39,162.35,2.78907869]
[1762403116801,0.66,162.38,162.35,2.78907869]
[1762403117002,7.76,162.39,162.35,2.78907869]
[1762403117324,112.46,162.39,162.35,2.78907869]
[1762403117502,111.8,162.39,162.36,2.78907869]
[1762403117706,104.7,162.39,162.37,2.09907869]
[1762403117908,104.7,162.39,162.38,2.09907869]
[1762403118102,104.7,162.39,162.38,2.78907869]
[1762403118298,104.7,162.39,162.36,12.57790638]
[1762403118698,104.7,162.39,162.37,0.69]
[1762403118905,104.7,162.39,162.37,2.78907869]
[1762403119402,104.7,162.39,162.37,0.69]
[1762403119615,104.7,162.39,162.37,6.84875666]
[1762403123327,104.7,162.39,162.37,8.94783535]
[1762403123722,104.7,162.39,162.38,12.54790638]
[1762403124917,104.7,162.39,162.38,18.70630027]
[1762403125602,104.7,162.39,162.37,7.1]
[1762403125603,104.7,162.39,162.37,15.35777942]
[1762403125808,105.37,162.39,162.37,13.25870073]
[1762403126026,105.37,162.39,162.37,15.35777942]
[1762403126321,105.37,162.39,162.37,16.54004757]
[1762403126918,104.7,162.39,162.37,17.20004757]
[1762403129229,104.7,162.39,162.38,3.28134684]
[1762403130231,104.7,162.39,162.38,9.43974073]
[1762403130631,104.7,162.39,162.38,6.15839389]
[1762403130832,104.7,162.39,162.37,17.20003496]
[1762403132422,104.7,162.39,162.38,3.28134684]
[1762403133438,104.7,162.39,162.38,9.43974073]
[1762403136130,105.39,162.39,162.37,7.1]
[1762403136314,0.69,162.38,162.37,7.1]
[1762403136526,0.69,162.38,162.36,9.44041079]
[1762403136834,104.7,162.39,162.36,9.44041079]
[1762403137211,0.69,162.38,162.36,9.44041079]
[1762403137838,104.7,162.39,162.36,9.44041079]
[1762403138037,105.39,162.39,162.36,10.12041079]
[1762403139620,105.39,162.39,162.36,9.44041079]
[1762403139929,105.39,162.39,162.36,9.44039483]
[1762403140452,105.39,162.39,162.36,10.12039483]
[1762403141536,104.7,162.39,162.36,9.44039483]
[1762403141746,7.79,162.38,162.35,3.21882948]
[1762403142224,0.69,162.37,162.35,3.21882948]
[1762403143419,0.69,162.37,162.35,9.37835709]
[1762403143823,0.69,162.37,162.35,3.21882948]
[1762403144228,0.69,162.37,162.35,9.37828371]
[1762403144937,0.69,162.37,162.35,3.21882948]
[1762403145116,10.38134684,162.36,162.35,3.21882948]
[1762403145318,7.1,162.36,162.32,0.2]
[1762403145519,0.69,162.35,162.33,3.2199584]
[1762403151150,0.69,162.36,162.33,12.66147258]
[1762403151967,0.69,162.36,162.33,9.38012574]
[1762403156673,0.69,162.36,162.33,12.66147258]
[1762403157569,0.72,162.37,162.33,13.34147258]
[1762403157872,0.72,162.36,162.33,12.66147258]
[1762403158099,0.72,162.36,162.33,3.2199584]
[1762403161376,10.16067184,162.36,162.33,3.2199584]
[1762403161693,3.28134684,162.34,162.33,3.2199584]
[1762403161874,20.592,162.31,162.27,0.2]
[1762403162075,23.87334684,162.28,162.27,0.2]
[1762403162276,23.87334684,162.28,162.24,0.2]
[1762403162277,23.87334684,162.27,162.24,0.2]
[1762403162474,31.69334684,162.27,162.24,0.2]
[1762403163070,41.48217453,162.27,162.24,0.2]
[1762403163269,42.25249559,162.27,162.24,0.2]
[1762403163670,48.41506414,162.27,162.24,0.2]
[1762403164690,9.78882769,162.26,162.24,0.2]
[1762403164888,13.84059055,162.25,162.24,0.2]
[1762403165093,14.56059055,162.25,162.24,0.2]
[1762403165389,31.69334684,162.25,162.24,0.2]
[1762403165792,37.85667503,162.25,162.24,0.2]
[1762403166166,38.62709105,162.25,162.24,0.2]
[1762403166391,41.90843789,162.25,162.24,0.2]
[1762403166904,38.62709105,162.25,162.24,0.2]
[1762403168670,35.34574421,162.25,162.24,0.2]
[1762403168883,38.62709105,162.25,162.24,0.2]
[1762403169386,20.592,162.21,162.2,0.2]
[1762403169588,23.87334684,162.21,162.2,0.2]
[1762403169790,31.69334684,162.21,162.2,0.2]
[1762403170910,37.85819487,162.21,162.2,0.2]
[1762403174876,47.64702256,162.21,162.2,0.2]
[1762403175080,48.41762856,162.21,162.2,0.2]
[1762403180408,14.75545403,162.21,162.2,0.2]
[1762403180608,10.40134684,162.21,162.2,0.2]
[1762403182306,16.56619487,162.21,162.2,0.2]
[1762403182688,10.40134684,162.21,162.2,0.2]
[1762403182888,7.12,162.21,162.2,0.89]
[1762403183810,7.12,162.21,162.2,0.2]
[1762403184615,7.12,162.21,162.2,0.89]
[1762403187302,7.12,162.21,162.2,0.2]
[1762403187613,16.56619487,162.21,162.2,0.2]
[1762403187915,17.22619487,162.21,162.2,0.2]
[1762403188213,37.15819487,162.21,162.2,0.2]
[1762403188511,29.81789176,162.21,162.2,0.2]
[1762403188715,27.712,162.21,162.2,0.2]
[1762403188892,29.81789176,162.21,162.2,0.2]
[1762403189214,35.98273979,162.21,162.2,0.2]
[1762403191099,35.98273979,162.21,162.2,0.89]
[1762403191706,35.98273979,162.21,162.2,0.2]
[1762403192913,36.64273979,162.21,162.2,0.2]
[1762403193911,46.43156748,162.21,162.2,0.2]
[1762403196609,35.98273979,162.21,162.2,0.2]
[1762403198498,36.65273979,162.21,162.2,0.2]
[1762403198910,35.98273979,162.21,162.2,0.2]
[1762403199117,36.65273979,162.21,162.2,0.2]
[1762403207025,35.98273979,162.21,162.2,0.2]
[1762403210127,36.65273979,162.21,162.2,0.2]
[1762403210303,35.98273979,162.21,162.2,0.2]
[1762403210509,35.98273979,162.21,162.2,0.91]
[1762403210736,35.98273979,162.21,162.2,0.2]
[1762403210915,35.98273979,162.21,162.2,0.91]
[1762403211120,29.81789176,162.21,162.2,0.91]
[1762403211533,7.12,162.21,162.2,0.91]
[1762403211746,0.67,162.27,162.2,0.91]
[1762403211913,9.22589176,162.26,162.21,0.71]
[1762403212217,2.10589176,162.25,162.21,0.71]
[1762403213120,13.2830404,162.26,162.21,0.71]
[1762403213121,2.10589176,162.23,162.21,0.71]
[1762403213324,2.10589176,162.22,162.2,0.2]
[1762403213526,2.10589176,162.22,162.2,0.86]
[1762403213913,29.81789176,162.23,162.21,0.66]
[1762403214538,27.712,162.23,162.21,0.66]
[1762403217538,29.81789176,162.23,162.21,0.66]
[1762403219224,27.712,162.23,162.21,0.66]
[1762403220537,35.98206097,162.23,162.21,0.66]
[1762403221838,29.81789176,162.23,162.21,0.66]
[1762403222047,27.712,162.23,162.21,0.66]
[1762403223435,104.7,162.26,162.21,0.66]
[1762403223436,2.10589176,162.25,162.21,0.66]
[1762403223636,104.7,162.26,162.22,2.10589176]
[1762403223828,106.80589176,162.26,162.21,6.82483976]
[1762403224032,113.92589176,162.26,162.21,6.82483976]
[1762403224229,113.92589176,162.26,162.22,2.76589176]
[1762403224230,111.82,162.26,162.22,2.76589176]
[1762403224628,111.82,162.26,162.23,0.66]
[1762403225721,111.82,162.26,162.23,2.76589176]
[1762403225953,104.7,162.26,162.24,0.66]
[1762403226129,104.7,162.26,162.24,2.76589176]
[1762403226533,104.7,162.26,162.25,0.66]
[1762403226850,140.65936098,162.3,162.25,2.76589176]
[1762403227046,2.10589176,162.28,162.25,0.66]
[1762403227224,9.20589176,162.28,162.22,8.27034906]
[1762403227428,9.20589176,162.28,162.25,0.66]
[1762403227938,15.36844743,162.28,162.25,0.66]
[1762403228135,15.36844743,162.28,162.2,0.2]
[1762403228136,20.592,162.24,162.2,0.2]
[1762403228342,22.69789176,162.21,162.2,0.2]
[1762403228552,9.22589176,162.21,162.2,0.2]
[1762403228730,9.89589176,162.21,162.2,0.2]
[1762403229431,15.39073979,162.21,162.2,0.2]
[1762403229636,35.98273979,162.21,162.2,0.2]
[1762403229840,27.712,162.21,162.2,0.86]
[1762403231931,33.87684803,162.21,162.2,0.86]
[1762403232329,33.87684803,162.21,162.2,0.2]
[1762403232533,27.712,162.21,162.2,0.2]
[1762403232823,33.87684803,162.21,162.2,0.86]
[1762403233236,27.712,162.21,162.2,0.86]
[1762403234450,132.412,162.21,162.2,0.86]
[1762403235837,125.292,162.21,162.2,0.86]
[1762403237743,131.45684803,162.21,162.2,0.86]
[1762403237934,134.23273979,162.21,162.2,0.2]
[1762403238133,140.68273979,162.21,162.2,0.2]
[1762403239058,141.35273979,162.21,162.2,0.2]
[1762403239856,130.54956748,162.21,162.2,0.2]
[1762403240456,16.06073979,162.21,162.2,0.2]
[1762403240956,35.98273979,162.21,162.2,0.2]
[1762403241334,36.65273979,162.21,162.2,0.2]
[1762403241537,35.98273979,162.21,162.2,0.2]
[1762403242060,35.98273979,162.21,162.2,0.91]
[1762403242258,29.81789176,162.21,162.2,0.91]
[1762403242444,27.712,162.21,162.2,0.2]
[1762403242762,35.98273979,162.21,162.2,0.2]
[1762403242956,35.98273979,162.21,162.2,0.91]
[1762403243762,27.712,162.21,162.2,0.91]
[1762403244449,20.592,162.21,162.2,0.91]
[1762403253771,10.40944777,162.23,162.2,0.91]
[1762403253967,10.40944777,162.23,162.21,0.71]
[1762403254170,16.57360828,162.23,162.21,0.71]
[1762403254673,7.12,162.23,162.21,0.71]
[1762403256577,7.12,162.23,162.21,6.8747673]
[1762403256877,10.40944777,162.27,162.22,3.28944777]
[1762403257069,7.12,162.27,162.23,3.28944777]
[1762403257379,37.16332266,162.29,162.24,3.28944777]
[1762403257585,37.16332266,162.29,162.24,4.00944777]
[1762403257762,37.16332266,162.29,162.25,0.72]
[1762403257966,104.7,162.26,162.25,0.72]
[1762403260191,108.68944777,162.26,162.2,0.2]
[1762403260369,11.10944777,162.25,162.2,0.92]
[1762403260675,3.28944777,162.24,162.2,7.08519501]
[1762403260863,16.57286917,162.25,162.21,0.72]
[1762403261681,3.28944777,162.24,162.21,0.72]
[1762403265380,9.45317294,162.24,162.21,0.72]
[1762403266387,3.28944777,162.22,162.21,0.72]
[1762403266687,3.28944777,162.22,162.2,0.2]
[1762403266986,115.80944777,162.21,162.2,0.2]
[1762403267287,115.10944777,162.21,162.2,0.2]
[1762403267786,111.82,162.21,162.2,0.2]
[1762403267967,111.82,162.21,162.2,0.92]
[1762403268786,111.82,162.21,162.2,0.2]
[1762403269979,111.82,162.21,162.2,0.92]
[1762403271179,104.7,162.21,162.2,0.92]
[1762403273889,104.7,162.21,162.2,7.08522811]
[1762403274181,104.7,162.21,162.2,0.2]
[1762403279782,121.9742958,162.21,162.2,0.2]
[1762403283777,142.5662958,162.21,162.2,0.2]
[1762403283988,145.78923103,162.21,162.2,0.2]
[1762403285206,142.5662958,162.21,162.2,0.2]
[1762403287301,37.8662958,162.21,162.2,0.2]
[1762403288793,40.33794902,162.21,162.2,0.2]
[1762403288985,50.12677671,162.21,162.2,0.2]
[1762403289198,29.53477671,162.21,162.2,0.2]
[1762403289395,79.53477671,162.21,162.2,0.2]
[1762403289701,20.592,162.18,162.17,0.2]
[1762403289999,31.00144777,162.18,162.17,0.2]
[1762403290188,31.70144777,162.18,162.17,0.2]
[1762403290802,37.86743617,162.18,162.17,0.2]
[1762403291613,98.42701241,162.18,162.17,0.2]
[1762403291785,9.78882769,162.17,162.09,3.88468082]
[1762403291981,3.28944777,162.11,162.09,3.88468082]
[1762403292486,3.28944777,162.11,162.1,0.66]
[1762403293218,9.45809868,162.11,162.09,3.22468082]
[1762403293382,24.58144777,162.1,162.03,0.2]
[1762403293589,3.28944777,162.07,162.04,0.66]
[1762403293810,7.12,162.09,162.05,3.28944777]
[1762403294190,7.12,162.09,162.04,3.88578108]
[1762403294191,7.12,162.09,162.06,0.66]
[1762403296392,10.40944777,162.09,162.06,0.66]
[1762403298926,115.10944777,162.09,162.06,0.66]
[1762403302825,115.10944777,162.09,162.06,6.83050893]
[1762403303202,115.10944777,162.09,162.07,0.69]
[1762403303406,111.82,162.09,162.07,0.69]
[1762403303623,104.7,162.09,162.07,6.85986246]
[1762403303932,107.98944777,162.09,162.07,0.69]
[1762403304337,11.06944777,162.08,162.04,3.22578108]
[1762403304644,3.28944777,162.05,162.04,3.22578108]
[1762403306338,3.28944777,162.05,162.04,3.91578108]
[1762403306731,3.28944777,162.05,162.04,3.22578108]
[1762403306927,10.12038266,162.05,162.04,3.22578108]
[1762403307123,9.46042511,162.05,162.03,0.2]
[1762403307309,3.28944777,162.04,162.03,0.2]
[1762403308256,9.46043402,162.05,162.03,0.2]
[1762403308460,3.28944777,162.05,162.03,0.2]
[1762403309366,7.12,162.06,162.03,0.89]
[1762403309653,10.40944777,162.06,162.03,0.89]
[1762403309855,10.40944777,162.06,162.03,0.2]
[1762403310045,10.40944777,162.06,162.04,0.69]
[1762403310354,9.22937407,162.06,162.04,0.69]
[1762403310535,7.12,162.06,162.04,0.69]
[1762403310735,2.10937407,162.08,162.04,6.86116506]
[1762403310942,15.39920011,162.08,162.04,0.69]
[1762403311262,9.22937407,162.08,162.05,0.69]
[1762403311447,2.10937407,162.07,162.05,0.69]
[1762403311653,13.28983876,162.08,162.05,0.69]
[1762403311834,2.10937407,162.07,162.05,0.69]
[1762403314660,9.22937407,162.08,162.05,0.69]
[1762403315034,9.22937407,162.08,162.05,6.86088125]
[1762403315358,7.12,162.08,162.05,6.86088125]
[1762403315560,7.12,162.08,162.06,0.69]
[1762403316154,9.22937407,162.08,162.06,0.69]
[1762403320164,7.12,162.08,162.06,0.69]
[1762403322147,106.80937407,162.09,162.06,0.69]
[1762403322475,104.7,162.08,162.06,0.69]
[1762403323156,104.7,162.08,162.06,6.86052744]
[1762403323370,104.7,162.08,162.06,0.69]
[1762403323552,104.7,162.08,162.07,0.66]
[1762403328058,104.7,162.08,162.07,6.83017338]
[1762403332180,104.7,162.08,162.07,0.66]
[1762403336079,104.7,162.08,162.07,6.83017338]
[1762403336777,107.49937407,162.08,162.04,0.67]
[1762403337485,107.49937407,162.08,162.03,0.2]
[1762403337486,9.91937407,162.07,162.03,0.2]
[1762403337782,2.10937407,162.06,162.03,4.0958303]
[1762403338779,2.10937407,162.05,162.03,3.4258303]
[1762403338958,2.10937407,162.05,162.03,4.0958303]
[1762403339475,2.10937407,162.05,162.03,3.4258303]
[1762403339677,2.79937407,162.06,162.03,10.26748343]
[1762403339881,0.69,162.06,162.03,10.26748343]
[1762403340061,9.22937407,162.07,162.04,0.67]
[1762403340263,7.12,162.07,162.04,0.67]
[1762403341082,9.22937407,162.07,162.04,0.67]
[1762403341969,2.10937407,162.07,162.04,0.67]
[1762403342282,2.79937407,162.06,162.03,3.4258303]
[1762403342485,13.29033199,162.07,162.04,0.67]
[1762403342486,9.22937407,162.07,162.04,0.67]
[1762403342990,2.79937407,162.07,162.04,0.67]
[1762403343284,9.91937407,162.07,162.04,0.67]
[1762403343984,7.12,162.07,162.04,6.84118395]
[1762403344378,7.12,162.07,162.05,0.67]
[1762403348569,106.80937407,162.08,162.05,0.67]
[1762403348884,111.82,162.08,162.05,6.84092581]
[1762403349787,111.82,162.08,162.05,0.67]
[1762403350168,111.82,162.08,162.05,6.84088282]
[1762403350894,50.0,162.14,162.06,0.67]
[1762403351100,50.0,162.27,162.13,2.10937407]
[1762403351271,7.81,162.26,162.17,2.10937407]
[1762403351468,7.14,162.25,162.18,16.92882769]
[1762403351687,7.83,162.25,162.18,7.14]
[1762403351895,2.10937407,162.2,162.18,7.14]
[1762403352066,0.69,162.24,162.18,7.14]
[1762403352270,2.10937407,162.19,162.16,0.67]
[1762403352468,0.69,162.23,162.16,7.81]
[1762403352679,0.69,162.22,162.16,7.81]
[1762403352884,2.10937407,162.21,162.17,0.67]
[1762403353188,2.79937407,162.22,162.17,2.77937407]
[1762403353397,2.79937407,162.22,162.17,0.67]
[1762403353570,2.79937407,162.22,162.18,0.67]
[1762403354202,2.10937407,162.24,162.19,2.10937407]
[1762403354513,2.10937407,162.24,162.2,7.14]
[1762403354690,2.79937407,162.24,162.2,13.97512379]